Cogmind - Beta 13 @@@ ROGUE MODE // 2024.03.26 @ 16:42:26 Player: opdo Result: Self-destructed Performance ------------- Evolutions (1) 500 Regions Visited (2) 400 Robots Destroyed (11) 55 Value Destroyed (215) 215 Prototype IDs (0) 0 Alien Tech Used (0) 0 Bonus (0) 0 TOTAL SCORE: 1170 Bonus ------- None Cogmind --------- Core Integrity 301/400 Matter 293/300 Energy 54/100 System Corruption 0% Temperature Cool (0) Movement Core (150) Ox2 Location -9/Materials Parts ------- > --- POWER (1) -------- (None) > --- PROPULSION (3) --- (None) > --- UTILITY (3) ------ Small Storage Unit Structural Scanner > --- WEAPON (2) ------- Medium Laser > --- INVENTORY (8) ---- Small Laser Shotgun Peak State ------------ > --- POWER ------------ Ion Engine > --- PROPULSION ------- Aluminum Leg Aluminum Leg > --- UTILITY ---------- Small Storage Unit Structural Scanner > --- WEAPON ----------- Medium Laser Small Laser > --- INVENTORY -------- Small Laser [Rating: 7] Favorites ----------- Power Ion Engine Engine Ion Engine Propulsion Aluminum Leg Leg Aluminum Leg Utility Small Storage Unit Device Structural Scanner Storage Small Storage Unit Weapon Small Laser Energy Gun Small Laser Build | -11 -10 -9 ------- Run | Yrd Mat Mat Slots Evolved 2 | . . 2 Power . | . . . Propulsion 1 | . . 1 Utility 1 | . . 1 Weapon . | . . . Parts Attached 8 | 5 1 2 Power 1 | 1 . . Engine 1 | 1 . . Core . | . . . Reactor . | . . . Propulsion 2 | 2 . . Treads . | . . . Leg 2 | 2 . . Wheel . | . . . Hover . | . . . Flight . | . . . Utility 2 | 1 . 1 Device 1 | . . 1 Storage 1 | 1 . . Processor . | . . . Hackware . | . . . Protection . | . . . Artifact . | . . . Weapon 3 | 1 1 1 Energy Gun 3 | 1 1 1 Energy Cannon . | . . . Ballistic Gun . | . . . Ballistic Cannon . | . . . Launcher . | . . . Special Weapon . | . . . Impact Weapon . | . . . Slashing Weapon . | . . . Piercing Weapon . | . . . Special Melee Weapon . | . . . Unidentified Prototypes . | . . . Parts Lost 4 | . . 4 Power 1 | . . 1 Propulsion 2 | . . 2 Utility . | . . . Weapon 1 | . . 1 Highest Loss Streak 3 | . . 3 To Critical Strikes . | . . . Average Slot Usage (%) 72 | . 80 64 Engine 10 | . 14 7 Leg 21 | . 28 14 Device 5 | . . 10 Storage 12 | . 14 11 Energy Gun 22 | . 23 21 Naked Turns . | . . . Heaviest Build 14 | 11 13 14 Greatest Support 20 | 20 20 20 Greatest Overweight (x) 2 | . . 2 Average Overweight (x) . | . . . Largest Inventory Capacity 8 | 8 8 8 Average Capacity 7 | 6 8 8 Most Carried 5 | 5 2 2 Average Carried 1 | 2 1 1 Final Capacity 8 | 8 8 8 Final Carried 2 | 2 1 2 Class Distribution -------------------- 100% | Mutant Dominant Class ---------------- Mutant | -10/Materials Mutant | -9/Materials Resources | -11 -10 -9 ----------- Run | Yrd Mat Mat Matter Collected 237 | 177 . 60 Remotely . | . . . Salvage Created 310 | . 70 240 Parts 14 | . 1 13 Haulers Intercepted . | . . . Recyclers Shooed . | . . . Parts Field Recycled . | . . . Retrieved Matter . | . . . Parts Self-Destructed . | . . . Prevented . | . . . Kills | -11 -10 -9 ------- Run | Yrd Mat Mat Combat Hostiles Destroyed 10 | . 2 8 Guns 10 | . 2 8 Classes Destroyed 3 | . 1 2 Recycler 1 | . . 1 Swarmer 6 | . . 6 Grunt 4 | . 2 2 Best Kill Streak 4 | . 2 4 Combat Bots Only 4 | . 2 4 Max Kills in Single Turn 1 | . 1 1 Gunslinging . | . . . Exploded . | . . . Melee . | . . . Uniques/NPCs Destroyed . | . . . Combat | -11 -10 -9 -------- Run | Yrd Mat Mat Hostile Shots Fired 78 | . 23 55 Missed 20 | . 8 12 Damage Taken 607 | . 209 398 Core 111 | . 12 99 Absorbed by Shields . | . . . Core Remaining (%) 97 | 100 95 . Volleys Fired 47 | . 18 29 Largest 2 | . 2 2 Hottest 90 | . 90 90 Shots Fired 76 | . 23 53 Gun 76 | . 23 53 Cannon . | . . . Launcher . | . . . Special . | . . . Kinetic . | . . . Thermal 76 | . 23 53 Explosive . | . . . Electromagnetic . | . . . Robot Hit Streak 6 | . 6 6 Robot Miss Streak 4 | . 4 4 Penetration Max . | . . . Secondary Targets 2 | . 1 1 Max Gunslinging Chain 1 | . 1 1 Shots Hit Robots 46 | . 13 33 Core Hits 17 | . 5 12 Critical Kills . | . . . Critical Parts Destroyed . | . . . Critical Strikes 3 | . 1 2 Burn 3 | . 1 2 Melee Attacks . | . . . Impact . | . . . Slashing . | . . . Piercing . | . . . Sneak Attacks . | . . . Combat Hostiles . | . . . Follow-up Attacks . | . . . Damage Inflicted 549 | . 151 398 Guns 536 | . 151 385 Cannons . | . . . Explosions . | . . . Melee . | . . . Ramming 13 | . . 13 Kinetic . | . . . Thermal 536 | . 151 385 Explosive . | . . . Electromagnetic . | . . . Impact . | . . . Slashing . | . . . Piercing . | . . . Highest Corruption . | . . . Average Corruption . | . . . Corruption Purged . | . . . Corruption Blocked . | . . . Overload Shots . | . . . Overflow Damage . | . . . Projectiles . | . . . Explosions . | . . . Melee . | . . . Knockbacks 1 | . . 1 Impact 1 | . . 1 Kinetic . | . . . Secondary . | . . . Self-Inflicted Damage . | . . . Shots . | . . . Rammed 1 | . . 1 Targets Rammed 4 | . . 4 Kicked 3 | . . 3 Crushed . | . . . Highest Temperature 257 | . 257 125 Average Temperature 71 | . 110 50 Received Heat Transfer 231 | . 117 114 Effects 1 | . 1 . Interference 1 | . 1 . Siege Activations . | . . . Robots Corrupted . | . . . Combat Hostiles . | . . . Parts Fried . | . . . Impact Corruptions . | . . . Robots Melted . | . . . Combat Hostiles . | . . . Parts Melted 3 | . 1 2 Heat Transferred 1624 | . 435 1189 Parts Sabotaged . | . . . Parts Stolen . | . . . Parts Stripped . | . . . Power Chain Reactions . | . . . Alert | -11 -10 -9 ------- Run | Yrd Mat Mat Peak Influence 231 | . 64 231 Initial 26 | . . 26 Average 70 | . 39 115 Maximum Alert Level 1 | . . 1 Low Security (%) 86 | 100 100 70 Level 1 13 | . . 29 Level 2 . | . . . Level 3 . | . . . Level 4 . | . . . Level 5 . | . . . High Security . | . . . Max Security . | . . . Squads Dispatched 1 | . 1 . Investigation . | . . . Extermination . | . . . Reinforcement 1 | . 1 . Assault . | . . . Garrison . | . . . Intercept . | . . . Searches Triggered . | . . . Construction Impeded . | . . . Haulers Reinforced . | . . . Active Scanning Responses . | . . . Cargo Convoy Interrupts . | . . . Stealth | -11 -10 -9 --------- Run | Yrd Mat Mat Distress Signals 1 | . . 1 Communications Jammed . | . . . Distress Signals . | . . . Times Spotted 15 | . 3 12 Peak Tracking Total 6 | . 3 6 Tactical Retreats 1 | . . 1 Traps | -11 -10 -9 ------- Run | Yrd Mat Mat Traps Triggered . | . . . Indirectly . | . . . Trap Hack Attempts . | . . . Triggered . | . . . Disarmed . | . . . Reprogrammed . | . . . Reused . | . . . Traps Extracted . | . . . Installed . | . . . Triggered . | . . . Machines | -11 -10 -9 ---------- Run | Yrd Mat Mat Machines Disabled . | . . . Max in Single Turn . | . . . Machines Repaired . | . . . Machines Dismantled . | . . . Machines Sabotaged . | . . . Overloaded Fab Kills . | . . . Hacking | -11 -10 -9 --------- Run | Yrd Mat Mat Machines Accessed 4 | . 4 . Terminals 3 | . 3 . Fabricators . | . . . Repair Stations . | . . . Recycling Units 1 | . 1 . Scanalyzers . | . . . Garrison Access . | . . . Total Hacks 7 | . 7 . Successful 4 | . 4 . Failed 3 | . 3 . Catastrophic . | . . . Database Lockouts . | . . . Manual 7 | . 7 . Terminals 5 | . 5 . Fabricators . | . . . Repair Stations . | . . . Recycling Units 2 | . 2 . Scanalyzers . | . . . Garrison Access . | . . . Terminal Hacks . | . . . Fabricator Hacks . | . . . Repair Station Hacks . | . . . Recycling Unit Hacks . | . . . Scanalyzer . | . . . Garrison Access Hacks . | . . . Unauthorized Hacks 4 | . 4 . Terminals 2 | . 2 . Botnet 2 | . 2 . Fabricators . | . . . Repair Stations . | . . . Recycling Units 2 | . 2 . Reject 1 | . 1 . Mask 1 | . 1 . Scanalyzers . | . . . Garrison Access . | . . . Data Cores Recovered . | . . . Used . | . . . Hacking Detections 1 | . 1 . Full Trace Events . | . . . Feedback Events . | . . . Feedback Blocked . | . . . Robot Schematics Acquired . | . . . Robots Built . | . . . Authchips . | . . . Time . | . . . Total Robot Build Rating . | . . . Part Schematics Acquired . | . . . Parts Built . | . . . Authchips . | . . . Time . | . . . Total Part Build Rating . | . . . Parts Repaired . | . . . Time . | . . . Parts Recycled . | . . . Recycled Matter . | . . . Retrieved Matter . | . . . Retrieved Components . | . . . Parts Scanalyzed . | . . . Part Schematics Acquired . | . . . Parts Damaged . | . . . Bothacking | -11 -10 -9 ------------ Run | Yrd Mat Mat Used RIF Installer . | . . . Robots Hacked . | . . . Non-combat . | . . . Combat . | . . . Robot Hacks Applied . | . . . Relay Couplers Released . | . . . Fabnet Peak Effective % . | . . . Robots Rewired . | . . . Allies Hacked . | . . . Hacks Repelled . | . . . Allies | -11 -10 -9 -------- Run | Yrd Mat Mat Total Allies . | . . . Largest Group . | . . . Highest-Rated Group . | . . . Highest-Rated Ally . | . . . Total Orders . | . . . Ally Attacks . | . . . Total Damage . | . . . Kills . | . . . Allies Corrupted . | . . . Allies Melted . | . . . Intel | -11 -10 -9 ------- Run | Yrd Mat Mat Robot Analysis Total . | . . . Derelict Logs Recovered . | . . . Drone Launches . | . . . Drone Recoveries . | . . . Exploration | -11 -10 -9 ------------- Run | Yrd Mat Mat Turns Passed 446 | 42 202 202 Spaces Moved 255 | 33 134 88 Core 22 | 12 . 10 Treads . | . . . Legs 233 | 21 134 78 Wheels . | . . . Hover . | . . . Flight . | . . . Fastest Speed 50 | 50 120 120 Average Speed 117 | 94 120 123 Slowest Speed 150 | 120 120 150 Overloaded Moves . | . . . Propulsion Burnouts . | . . . Robots Hopped . | . . . Cave-ins Triggered . | . . . Exploration Rate (%) 15 | 3 32 10 Regions Visited 2 Branch Regions . Pre-discovered Areas . | . . . Known Exits Taken . | . . . Unknown Exits Taken 2 | 1 1 . Scrap Searched . | . . . Spaces Dug . | . . . Terrain Destroyed . | . . . Melee . | . . . Projectile . | . . . AOE . | . . . Terrain Rammed . | . . . Walls Destroyed . | . . . Machines Disabled . | . . . Actions | -11 -10 -9 --------- Run | Yrd Mat Mat Total 322 | 44 152 126 Wait 1 | . . 1 Move 253 | 32 133 88 Hop . | . . . Pick Up 9 | 7 . 2 Fast Attach . | . . . Attach 7 | 5 1 1 Detach . | . . . Swap 1 | . . 1 Drop . | . . . Fire 47 | . 18 29 Melee . | . . . Ram 1 | . . 1 Kick 3 | . . 3 Crush . | . . . Escape Stasis . | . . . Rewire . | . . . Trap . | . . . Miscellaneous . | . . . Route ------- -11/Scrapyard -10/Materials -9/Materials History --------- Turn | Location | Event 10 | -11/Scrapyard | Discovered new exit (range 15) 43 | -11/Scrapyard | Entered Materials 237 | -10/Materials | Discovered new exit (range 5) 245 | -10/Materials | Entered another Materials area 245 | -9/Materials | Evolved 2 slots: Propulsion x1, Utility x1 314 | -9/Materials | Build established: Mutant 429 | -9/Materials | Lost 3 parts (1p2n) 447 | -9/Materials | Self-destructed Last Messages --------------- 00378_ S-10 Pest suffers critical hit (Burn). 00382_ R-06 Scavenger collects Flight Unit. 00387_ Flight Unit melted. 00387_ S-10 Pest destroyed. 00387_ Switching to secondary target: G-34 Mercenary. 00388_ R-06 Scavenger collects Lgt. Assault Rifle. 00390_ Acquired 33 matter. 00393_ K-01 Serf collects debris. 00398_ Aluminum Leg destroyed. 00398_ G-34 Mercenary destroyed. 00398_ K-01 Serf collects debris. 00419_ Slammed into U-05 Engineer. 00431_ Sml. Laser destroyed. 00431_ Heat Sink melted. 00431_ G-34 Mercenary destroyed. 00433_ R-06 Scavenger collects Sml. Laser. 00440_ R-06 Scavenger destroyed. 00442_ Acquired 17 matter. Map ----- +----------------------------------------------------+ | + ?????????????????????????????????????? | | # ?????????????????????????????????????? | | #+### # ?????????????????????????????????????? | | ## # ?????????????????????????????????????? | | " ## # ?????????????????????????????????????? | | " ## # # #??????????????????????? | | " ## #################??????????????????????? | | " ## ??????????????????????? | | + ??????????????????????? | | ###### ??????????????????????? | | ######## ###+####### ##????????????????????????? | | ????#### # #### ? ##????????????????????????? | | ??????## # ##???????????????????????????????? | | ??????## # """ ##?? ????????????????????????????? | | ??????## # """ ##?? ???????????????????????????? | | ??????## + """ + ?? ???????????????????????????? | | ??????## # #### #### ?????????????????????? | | ??????## ############/##### ?????????????????????? | | ??????## + # ?????????????????????? | | ??????########### # ?????????????????????? | | ??????########### u # ?????????????????????? | | ???????????????## """ # """ ?????????????????? | | ???????????????## ]! """ #####+?????????????????? | | ???????????????## ]! """ w%[ ?????????????????? | | ???????????????## ]!t %##?????????????????????? | | ???????????????## r @##?????????????????????? | | ???????????????#######+#####?????????????????????? | | ???????????????#######%#####?????????????????????? | | ????????????????????## ##????????????????????????? | | ??????????? ######## ####### ??????????????????? | | ???????????##+########%####### ???????????? | | ????? = % ???????????? | | ????? ################ ???????????? | | ????????????? ################ ??????????????????? | | ?????????????????????????????????????????????????? | | ?????????????????????????????????????????????????? | | ?????????????????????????????????????????????????? | | ?????????????????????????????????????????????????? | | ?????????????????????????????????????????????????? | | ?????????????????????????????????????????????????? | | ?????????????????????????????????????????????????? | | ?????????????????????????????????????????????????? | | ?????????????????????????????????????????????????? | | ?????????????????????????????????????????????????? | | ?????????????????????????????????????????????????? | | ?????????????????????????????????????????????????? | | ?????????????????????????????????????????????????? | | ?????????????????????????????????????????????????? | | ?????????????????????????????????????????????????? | | ?????????????????????????????????????????????????? | +----------------------------------------------------+ Best States ------------- Heat Dissipation 28 Energy Generation 10 Energy Capacity 250 Matter Stores 276 Matter Capacity 300 Sight Range 16 Terrain Scan Density 10 Evasion (%) 55 Item Schematics ----------------- None Robot Schematics ------------------ None Fabricated ------------ Nothing Alien Tech Used ----------------- None Achievements -------------- None Challenges ------------ None Game ------ Seed SalvageWaveArmor Manual? 0 Play Time 00:03:34 Cumulative 17.5 hours Start 2024.03.25 @ 18:24:37 End 2024.03.26 @ 16:42:26 Sessions 3 Manual Loads 0 Difficulty Rogue Special Mode None Game No. 48 Rogue 46 Adventurer 2 Explorer 0 Win Type - Total 0 Types 0/0/0/0/0/0/0/0/0 Lore% 20 Gallery% 31 Achievement% 22 Wizard Run 0 Options --------- Layout 2 ASCII 0 Keyboard 0 Movement Arrows Keybinds 0 Fullscreen 2 Font 24/Smallcaps Map View 50x44 Zoom Use 0% Tactical HUD 1 Map Filters NONE Filters NONE Steam 1 RUN: 02f3e935-f1a7-4c04-a20f-7e30b4661151